[Event "Early-Titled-Tuesday-Blitz-January-23-2024"]
[Site "Chess.com"]
[Date "2024.01.23"]
[Round "6"]
[White "ukchessbomber"]
[Black "ilqar_74"]
[Result "0-1"]
[WhiteElo "2672"]
[BlackElo "2892"]
[TimeControl "180+1"]
[EndTime "9:06:10 PST"]
[Termination "ilqar_74 won on time"]

1. c4 {[%clk 0:03:00.9]} 1... Nf6 {[%clk 0:02:56.9]} 2. Nc3 {[%clk 0:03:00.9]}
2... d5 {[%clk 0:02:56.6]} 3. cxd5 {[%clk 0:03:00.7]} 3... Nxd5 {[%clk
0:02:57.5]} 4. e3 {[%clk 0:03:01.5]} 4... g6 {[%clk 0:02:57.3]} 5. Bc4 {[%clk
0:03:01]} 5... Nb6 {[%clk 0:02:57.3]} 6. Bb3 {[%clk 0:03:01.6]} 6... Bg7 {[%clk
0:02:57.9]} 7. Nf3 {[%clk 0:03:01.3]} 7... O-O {[%clk 0:02:57.6]} 8. O-O {[%clk
0:03:01.9]} 8... c5 {[%clk 0:02:57.8]} 9. Bc2 {[%clk 0:03:01.6]} 9... Nc6 {[%clk
0:02:58.2]} 10. h3 {[%clk 0:03:01.8]} 10... Nb4 {[%clk 0:02:58.5]} 11. a3 {[%clk
0:03:01.4]} 11... Nxc2 {[%clk 0:02:58.8]} 12. Qxc2 {[%clk 0:03:02.3]} 12... Bf5
{[%clk 0:02:58.7]} 13. e4 {[%clk 0:03:02.8]} 13... Be6 {[%clk 0:02:59.2]} 14. d3
{[%clk 0:03:03.4]} 14... Qd7 {[%clk 0:02:55.9]} 15. Be3 {[%clk 0:03:03.4]} 15...
Rac8 {[%clk 0:02:55.9]} 16. Rad1 {[%clk 0:03:01.3]} 16... Rfd8 {[%clk
0:02:56.2]} 17. d4 {[%clk 0:02:58]} 17... cxd4 {[%clk 0:02:17.8]} 18. Bxd4
{[%clk 0:02:40.9]} 18... Qc7 {[%clk 0:02:17]} 19. Bxg7 {[%clk 0:02:28.5]} 19...
Kxg7 {[%clk 0:02:17.9]} 20. Nd4 {[%clk 0:02:29]} 20... Bc4 {[%clk 0:02:16.9]}
21. Rfe1 {[%clk 0:02:29.6]} 21... e5 {[%clk 0:02:14.6]} 22. Nf3 {[%clk
0:02:27.6]} 22... Be6 {[%clk 0:02:11.2]} 23. Ng5 {[%clk 0:02:26.2]} 23... Bc4
{[%clk 0:02:09.9]} 24. Nf3 {[%clk 0:02:25.9]} 24... f6 {[%clk 0:02:07.1]} 25.
Qc1 {[%clk 0:02:19.4]} 25... Bf7 {[%clk 0:02:04.8]} 26. h4 {[%clk 0:02:18.8]}
26... h5 {[%clk 0:02:02.9]} 27. Qe3 {[%clk 0:02:18.4]} 27... Nc4 {[%clk
0:01:59.8]} 28. Qc1 {[%clk 0:02:18.4]} 28... Rxd1 {[%clk 0:01:55.9]} 29. Rxd1
{[%clk 0:02:15.9]} 29... Nxb2 {[%clk 0:01:52.7]} 30. Qxb2 {[%clk 0:02:15.1]}
30... Qxc3 {[%clk 0:01:53.1]} 31. Qxb7 {[%clk 0:02:15.6]} 31... Rc7 {[%clk
0:01:53.2]} 32. Qb8 {[%clk 0:02:11.6]} 32... Qc2 {[%clk 0:01:44.3]} 33. Qd8
{[%clk 0:01:55.7]} 33... Rc6 {[%clk 0:01:36.4]} 34. Rd7 {[%clk 0:01:18]} 34...
Qc1+ {[%clk 0:01:33.8]} 35. Kh2 {[%clk 0:01:17.8]} 35... Rc8 {[%clk 0:00:42.4]}
36. Qe7 {[%clk 0:00:58.3]} 36... Rf8 {[%clk 0:00:42]} 37. g3 {[%clk 0:00:32.4]}
37... Qf1 {[%clk 0:00:30.6]} 38. Rd2 {[%clk 0:00:28.5]} 38... Rc8 {[%clk
0:00:22.8]} 0-1

[Event "Early-Titled-Tuesday-Blitz-January-23-2024"]
[Site "Chess.com"]
[Date "2024.01.23"]
[Round "6"]
[White "FARIZA2018"]
[Black "Korchmar_Vasiliy"]
[Result "0-1"]
[WhiteElo "2543"]
[BlackElo "2721"]
[TimeControl "180+1"]
[EndTime "9:06:11 PST"]
[Termination "Korchmar_Vasiliy won by resignation"]

1. e4 {[%clk 0:03:00.9]} 1... c5 {[%clk 0:03:00.2]} 2. Nf3 {[%clk 0:03:00.7]}
2... a6 {[%clk 0:03:00.4]} 3. c4 {[%clk 0:02:58.2]} 3... Nc6 {[%clk 0:02:58.6]}
4. d4 {[%clk 0:02:58.2]} 4... cxd4 {[%clk 0:02:59.5]} 5. Nxd4 {[%clk 0:02:58.7]}
5... Nf6 {[%clk 0:03:00.2]} 6. Nc3 {[%clk 0:02:58.1]} 6... Qc7 {[%clk
0:03:00.7]} 7. Be2 {[%clk 0:02:57.2]} 7... e6 {[%clk 0:03:00.5]} 8. O-O {[%clk
0:02:56.5]} 8... Nxd4 {[%clk 0:02:55.9]} 9. Qxd4 {[%clk 0:02:55.6]} 9... Bd6
{[%clk 0:02:56.5]} 10. h3 {[%clk 0:02:49.7]} 10... b6 {[%clk 0:02:53.4]} 11. Be3
{[%clk 0:02:42.3]} 11... Bc5 {[%clk 0:02:31.7]} 12. Qd3 {[%clk 0:02:41.6]} 12...
Bb7 {[%clk 0:02:29.7]} 13. Rfe1 {[%clk 0:02:30.6]} 13... O-O {[%clk 0:02:28.2]}
14. Bf1 {[%clk 0:02:28.2]} 14... h6 {[%clk 0:02:25.8]} 15. Bxc5 {[%clk 0:02:25]}
15... Qxc5 {[%clk 0:02:16.9]} 16. e5 {[%clk 0:02:24.8]} 16... Nh5 {[%clk
0:02:08.2]} 17. Qxd7 {[%clk 0:02:07.3]} 17... Bc6 {[%clk 0:02:08.3]} 18. Qd2
{[%clk 0:02:01.5]} 18... Rad8 {[%clk 0:02:06.7]} 19. Qe3 {[%clk 0:02:01.2]}
19... Qxe3 {[%clk 0:02:00.3]} 20. Rxe3 {[%clk 0:02:00.5]} 20... Rd2 {[%clk
0:01:52.2]} 21. b3 {[%clk 0:01:58.2]} 21... Nf4 {[%clk 0:01:50]} 22. g3 {[%clk
0:01:50.4]} 22... Ng6 {[%clk 0:01:50.2]} 23. Bg2 {[%clk 0:01:37.5]} 23... Bxg2
{[%clk 0:01:48.1]} 24. Kxg2 {[%clk 0:01:37.7]} 24... Rfd8 {[%clk 0:01:47.7]} 25.
Rae1 {[%clk 0:01:36.8]} 25... Ne7 {[%clk 0:01:44.4]} 26. R3e2 {[%clk 0:01:31.9]}
26... R2d3 {[%clk 0:01:38.8]} 27. Ne4 {[%clk 0:01:31]} 27... Nc6 {[%clk
0:01:37.6]} 28. f4 {[%clk 0:01:23.4]} 28... a5 {[%clk 0:01:38]} 29. Kf2 {[%clk
0:01:18.8]} 29... a4 {[%clk 0:01:37.6]} 30. bxa4 {[%clk 0:01:12]} 30... Ra3
{[%clk 0:01:27.7]} 31. Nd6 {[%clk 0:01:06.6]} 31... Rxa4 {[%clk 0:01:18]} 32.
Rb1 {[%clk 0:01:05.4]} 32... Na5 {[%clk 0:01:13.2]} 33. Rc2 {[%clk 0:00:57.6]}
33... f6 {[%clk 0:00:55.3]} 34. Rxb6 {[%clk 0:00:56.5]} 34... fxe5 {[%clk
0:00:55.9]} 35. fxe5 {[%clk 0:00:56.1]} 35... Rf8+ {[%clk 0:00:56.5]} 36. Kg2
{[%clk 0:00:55.5]} 36... Ra3 {[%clk 0:00:57.2]} 37. c5 {[%clk 0:00:19.9]} 37...
Rff3 {[%clk 0:00:53.4]} 38. Ne4 {[%clk 0:00:20]} 38... Rfe3 {[%clk 0:00:54.1]}
39. Rb4 {[%clk 0:00:19.3]} 39... Nc6 {[%clk 0:00:52.7]} 40. Rbc4 {[%clk
0:00:18.9]} 40... Nxe5 {[%clk 0:00:53.2]} 41. Rd4 {[%clk 0:00:18.8]} 41... Nc6
{[%clk 0:00:52.9]} 42. Rdc4 {[%clk 0:00:18.7]} 42... Ne5 {[%clk 0:00:53.5]} 43.
Rb4 {[%clk 0:00:18.5]} 43... Nd3 {[%clk 0:00:53.7]} 44. Rb8+ {[%clk 0:00:18.5]}
44... Kh7 {[%clk 0:00:54.4]} 45. Rc3 {[%clk 0:00:11.4]} 45... Rxa2+ {[%clk
0:00:49.9]} 0-1

[Event "Early-Titled-Tuesday-Blitz-January-23-2024"]
[Site "Chess.com"]
[Date "2024.01.23"]
[Round "6"]
[White "LangesNasenhaar"]
[Black "Viktor_Poddubnyi"]
[Result "1-0"]
[WhiteElo "2416"]
[BlackElo "2250"]
[TimeControl "180+1"]
[EndTime "9:06:12 PST"]
[Termination "LangesNasenhaar won by checkmate"]

1. Nf3 {[%clk 0:03:00.9]} 1... g6 {[%clk 0:03:00.5]} 2. d4 {[%clk 0:02:59.5]}
2... Bg7 {[%clk 0:03:01]} 3. g3 {[%clk 0:03:00.4]} 3... Nf6 {[%clk 0:03:00.4]}
4. Bg2 {[%clk 0:03:00.4]} 4... d6 {[%clk 0:03:00.8]} 5. b3 {[%clk 0:03:00.8]}
5... O-O {[%clk 0:03:00]} 6. Bb2 {[%clk 0:03:01.2]} 6... c5 {[%clk 0:02:49.3]}
7. O-O {[%clk 0:02:58.6]} 7... cxd4 {[%clk 0:02:40.8]} 8. Nxd4 {[%clk
0:02:57.5]} 8... Nc6 {[%clk 0:02:34.1]} 9. c4 {[%clk 0:02:57.2]} 9... Bd7 {[%clk
0:02:26.2]} 10. Nc3 {[%clk 0:02:56.6]} 10... Nxd4 {[%clk 0:02:01.1]} 11. Qxd4
{[%clk 0:02:56.1]} 11... Ne8 {[%clk 0:01:53.6]} 12. Qd2 {[%clk 0:02:50.9]} 12...
Bc6 {[%clk 0:01:53.7]} 13. Nd5 {[%clk 0:02:46.1]} 13... e6 {[%clk 0:01:22.6]}
14. Bxg7 {[%clk 0:02:39.7]} 14... Nxg7 {[%clk 0:01:22.6]} 15. Nc3 {[%clk
0:02:36.5]} 15... Qe7 {[%clk 0:01:10]} 16. Rfd1 {[%clk 0:02:30.4]} 16... Rfd8
{[%clk 0:01:10.4]} 17. e4 {[%clk 0:02:27]} 17... a6 {[%clk 0:01:06.6]} 18. a4
{[%clk 0:02:19.2]} 18... Ne8 {[%clk 0:01:00.4]} 19. h3 {[%clk 0:02:11.1]} 19...
Rac8 {[%clk 0:00:58.7]} 20. Qe3 {[%clk 0:02:02.6]} 20... Qf6 {[%clk 0:00:52.1]}
21. Rd3 {[%clk 0:01:55.8]} 21... h5 {[%clk 0:00:44.5]} 22. h4 {[%clk 0:01:51.9]}
22... Qe7 {[%clk 0:00:44]} 23. Rad1 {[%clk 0:01:51.3]} 23... Qf6 {[%clk
0:00:44.2]} 24. Ne2 {[%clk 0:01:48.5]} 24... Qe7 {[%clk 0:00:26.2]} 25. f4
{[%clk 0:01:46.3]} 25... Qc7 {[%clk 0:00:25]} 26. Kh2 {[%clk 0:01:44.8]} 26...
a5 {[%clk 0:00:23]} 27. f5 {[%clk 0:01:41.3]} 27... Qe7 {[%clk 0:00:14.4]} 28.
fxg6 {[%clk 0:01:32.5]} 28... fxg6 {[%clk 0:00:15.3]} 29. Nf4 {[%clk 0:01:27.3]}
29... Kh7 {[%clk 0:00:13.5]} 30. Bh3 {[%clk 0:01:19.4]} 30... Bd7 {[%clk
0:00:14]} 31. e5 {[%clk 0:01:15.2]} 31... dxe5 {[%clk 0:00:11.1]} 32. Qxe5
{[%clk 0:01:14.8]} 32... Ng7 {[%clk 0:00:08.1]} 33. Bxe6 {[%clk 0:00:54.2]}
33... Bxe6 {[%clk 0:00:06.4]} 34. Rxd8 {[%clk 0:00:48.2]} 34... Rxd8 {[%clk
0:00:06.9]} 35. Rxd8 {[%clk 0:00:48.3]} 35... Qxd8 {[%clk 0:00:07.5]} 36. Nxe6
{[%clk 0:00:48.3]} 36... Qd2+ {[%clk 0:00:05.2]} 37. Kh3 {[%clk 0:00:46.2]}
37... Nf5 {[%clk 0:00:02.6]} 38. Ng5+ {[%clk 0:00:38.1]} 38... Kg8 {[%clk
0:00:02.5]} 39. Qe8+ {[%clk 0:00:36.1]} 39... Kg7 {[%clk 0:00:01.9]} 40. Qf7+
{[%clk 0:00:34.1]} 40... Kh6 {[%clk 0:00:02.4]} 41. Qh7# {[%clk 0:00:34.2]} 1-0

[Event "Early-Titled-Tuesday-Blitz-January-23-2024"]
[Site "Chess.com"]
[Date "2024.01.23"]
[Round "6"]
[White "Ezov"]
[Black "alekroth65"]
[Result "0-1"]
[WhiteElo "2215"]
[BlackElo "2345"]
[TimeControl "180+1"]
[EndTime "9:06:12 PST"]
[Termination "alekroth65 won on time"]

1. d4 {[%clk 0:03:00.9]} 1... Nf6 {[%clk 0:02:58.4]} 2. Nc3 {[%clk 0:03:00]}
2... g6 {[%clk 0:02:58.7]} 3. h4 {[%clk 0:02:57.8]} 3... Bg7 {[%clk 0:02:54]} 4.
h5 {[%clk 0:02:57]} 4... Nxh5 {[%clk 0:02:51.7]} 5. Bg5 {[%clk 0:02:55.7]} 5...
Nf6 {[%clk 0:02:50.4]} 6. Qd2 {[%clk 0:02:54.5]} 6... d5 {[%clk 0:02:47.8]} 7.
O-O-O {[%clk 0:02:52.8]} 7... Nc6 {[%clk 0:02:43.4]} 8. f3 {[%clk 0:02:50.4]}
8... h6 {[%clk 0:02:29.6]} 9. Bf4 {[%clk 0:02:45.4]} 9... Nh5 {[%clk 0:02:24.1]}
10. Bh2 {[%clk 0:02:36.2]} 10... Nxd4 {[%clk 0:02:18]} 11. g4 {[%clk 0:02:30.8]}
11... Ne6 {[%clk 0:02:02.1]} 12. gxh5 {[%clk 0:02:27.3]} 12... d4 {[%clk
0:02:01.7]} 13. Ne4 {[%clk 0:02:07.2]} 13... f5 {[%clk 0:01:53.4]} 14. Ng3
{[%clk 0:01:47.7]} 14... f4 {[%clk 0:01:49.9]} 15. Ne4 {[%clk 0:01:45.7]} 15...
g5 {[%clk 0:01:48.2]} 16. Bh3 {[%clk 0:01:35.8]} 16... Qd5 {[%clk 0:01:43.9]}
17. Kb1 {[%clk 0:01:33.3]} 17... c5 {[%clk 0:01:33.8]} 18. Qa5 {[%clk
0:01:15.4]} 18... b6 {[%clk 0:01:27.7]} 19. Qa4+ {[%clk 0:01:10.3]} 19... Bd7
{[%clk 0:01:23.4]} 20. Qb3 {[%clk 0:01:08.7]} 20... c4 {[%clk 0:01:23.1]} 21.
Qb4 {[%clk 0:01:02.6]} 21... Kf7 {[%clk 0:01:12]} 22. Bg4 {[%clk 0:00:52.3]}
22... a5 {[%clk 0:01:08.9]} 23. Qd2 {[%clk 0:00:48.5]} 23... b5 {[%clk
0:01:01.6]} 24. Nh3 {[%clk 0:00:44.8]} 24... b4 {[%clk 0:00:55.4]} 25. Bxe6+
{[%clk 0:00:43.3]} 25... Bxe6 {[%clk 0:00:52.7]} 26. Rhg1 {[%clk 0:00:39.4]}
26... c3 {[%clk 0:00:52.4]} 27. Nhxg5+ {[%clk 0:00:34.5]} 27... hxg5 {[%clk
0:00:39.5]} 28. Nxg5+ {[%clk 0:00:34]} 28... Qxg5 {[%clk 0:00:18]} 29. Qd3
{[%clk 0:00:16.9]} 29... Qf5 {[%clk 0:00:17.6]} 30. Rdf1 {[%clk 0:00:03.9]}
30... Bf6 {[%clk 0:00:14.4]} 0-1

[Event "Early-Titled-Tuesday-Blitz-January-23-2024"]
[Site "Chess.com"]
[Date "2024.01.23"]
[Round "6"]
[White "malakismayil"]
[Black "Bkmzzzzz"]
[Result "1-0"]
[WhiteElo "2569"]
[BlackElo "2395"]
[TimeControl "180+1"]
[EndTime "9:06:14 PST"]
[Termination "malakismayil won by checkmate"]

1. e4 {[%clk 0:03:00.9]} 1... d6 {[%clk 0:02:59.8]} 2. d4 {[%clk 0:03:00.9]}
2... Nf6 {[%clk 0:02:59.7]} 3. Nc3 {[%clk 0:03:00.9]} 3... e5 {[%clk 0:03:00.2]}
4. dxe5 {[%clk 0:02:59.7]} 4... dxe5 {[%clk 0:03:01.1]} 5. Qxd8+ {[%clk
0:02:59.8]} 5... Kxd8 {[%clk 0:03:02]} 6. Nf3 {[%clk 0:03:00.4]} 6... Bd6 {[%clk
0:03:01.2]} 7. Bg5 {[%clk 0:03:01.1]} 7... Be6 {[%clk 0:03:00.9]} 8. O-O-O
{[%clk 0:02:59.6]} 8... Nd7 {[%clk 0:03:01]} 9. Bxf6+ {[%clk 0:02:56.7]} 9...
gxf6 {[%clk 0:03:00.3]} 10. Nd5 {[%clk 0:02:56.9]} 10... Kc8 {[%clk 0:02:25.3]}
11. c4 {[%clk 0:02:49.8]} 11... Bc5 {[%clk 0:02:24.5]} 12. Rd2 {[%clk
0:02:48.5]} 12... c6 {[%clk 0:02:23.8]} 13. Ne3 {[%clk 0:02:47]} 13... Kc7
{[%clk 0:02:21.5]} 14. Nh4 {[%clk 0:02:45.7]} 14... Nb6 {[%clk 0:02:14.5]} 15.
Nhf5 {[%clk 0:02:38.8]} 15... a5 {[%clk 0:02:09.6]} 16. Be2 {[%clk 0:02:35.6]}
16... Bb4 {[%clk 0:02:00.5]} 17. Rdd1 {[%clk 0:02:33.4]} 17... a4 {[%clk
0:01:54.9]} 18. a3 {[%clk 0:02:32.6]} 18... Bc5 {[%clk 0:01:53.9]} 19. Rd2
{[%clk 0:02:22.7]} 19... Rhg8 {[%clk 0:01:40.6]} 20. g3 {[%clk 0:02:15.6]} 20...
Rad8 {[%clk 0:01:24.8]} 21. Rhd1 {[%clk 0:02:14.4]} 21... Rxd2 {[%clk
0:01:24.4]} 22. Rxd2 {[%clk 0:02:15.3]} 22... Rd8 {[%clk 0:01:24.5]} 23. Rxd8
{[%clk 0:02:08.1]} 23... Kxd8 {[%clk 0:01:25.4]} 24. Kc2 {[%clk 0:02:09]} 24...
Bxf5 {[%clk 0:01:04.3]} 25. exf5 {[%clk 0:02:07.1]} 25... Bd4 {[%clk 0:01:03.9]}
26. Nd1 {[%clk 0:02:01.2]} 26... Ke7 {[%clk 0:01:03]} 27. f3 {[%clk 0:02:01.2]}
27... Kd6 {[%clk 0:01:02.4]} 28. b4 {[%clk 0:01:53.4]} 28... axb3+ {[%clk
0:01:00.5]} 29. Kxb3 {[%clk 0:01:54.3]} 29... Kc5 {[%clk 0:01:00.6]} 30. g4
{[%clk 0:01:48.3]} 30... h6 {[%clk 0:00:56.3]} 31. h4 {[%clk 0:01:48]} 31... Nd7
{[%clk 0:00:46.2]} 32. Bd3 {[%clk 0:01:44.3]} 32... Kb6 {[%clk 0:00:41.4]} 33.
Be4 {[%clk 0:01:44.2]} 33... Nc5+ {[%clk 0:00:41.2]} 34. Kc2 {[%clk 0:01:44.4]}
34... Ka5 {[%clk 0:00:25.7]} 35. Kb1 {[%clk 0:01:29.8]} 35... Ka4 {[%clk
0:00:22.9]} 36. Ka2 {[%clk 0:01:30.4]} 36... Ka5 {[%clk 0:00:13.4]} 37. Bc2
{[%clk 0:01:27.8]} 37... Nd7 {[%clk 0:00:10.6]} 38. Kb3 {[%clk 0:01:26.3]} 38...
Nb6 {[%clk 0:00:11.3]} 39. Be4 {[%clk 0:01:23.7]} 39... Nd7 {[%clk 0:00:11.8]}
40. Bc2 {[%clk 0:01:21.9]} 40... Nc5+ {[%clk 0:00:12.5]} 41. Ka2 {[%clk
0:01:22.3]} 41... Nd7 {[%clk 0:00:13.2]} 42. Bd3 {[%clk 0:01:02.7]} 42... Kb6
{[%clk 0:00:11.6]} 43. Be2 {[%clk 0:00:55.6]} 43... Kc5 {[%clk 0:00:12]} 44. Kb3
{[%clk 0:00:56.1]} 44... Nb6 {[%clk 0:00:12.4]} 45. a4 {[%clk 0:00:51.7]} 45...
Nc8 {[%clk 0:00:13]} 46. a5 {[%clk 0:00:49.8]} 46... Nd6 {[%clk 0:00:13.3]} 47.
Bd3 {[%clk 0:00:44.4]} 47... Ne8 {[%clk 0:00:13.2]} 48. Nc3 {[%clk 0:00:36.4]}
48... Nc7 {[%clk 0:00:13.8]} 49. Ne4# {[%clk 0:00:35.8]} 1-0

[Event "Early-Titled-Tuesday-Blitz-January-23-2024"]
[Site "Chess.com"]
[Date "2024.01.23"]
[Round "6"]
[White "deribas12345"]
[Black "NM_Antelacus"]
[Result "0-1"]
[WhiteElo "2457"]
[BlackElo "2208"]
[TimeControl "180+1"]
[EndTime "9:06:14 PST"]
[Termination "NM_Antelacus won on time"]

1. d4 {[%clk 0:03:00.9]} 1... Nf6 {[%clk 0:02:58.8]} 2. c4 {[%clk 0:03:01]} 2...
e6 {[%clk 0:02:59.2]} 3. Nc3 {[%clk 0:03:01.2]} 3... Bb4 {[%clk 0:02:59]} 4. a3
{[%clk 0:03:01.6]} 4... Bxc3+ {[%clk 0:02:58.6]} 5. bxc3 {[%clk 0:03:02.5]} 5...
O-O {[%clk 0:02:57.8]} 6. f3 {[%clk 0:03:02.9]} 6... c5 {[%clk 0:02:55.4]} 7. e4
{[%clk 0:03:02.9]} 7... d5 {[%clk 0:02:43.4]} 8. e5 {[%clk 0:03:02.1]} 8... Nfd7
{[%clk 0:02:42.4]} 9. Nh3 {[%clk 0:03:01.1]} 9... Nc6 {[%clk 0:02:37.8]} 10.
cxd5 {[%clk 0:03:00.7]} 10... exd5 {[%clk 0:02:37.2]} 11. Be3 {[%clk 0:02:57.9]}
11... Qa5 {[%clk 0:02:33.7]} 12. Qd2 {[%clk 0:02:55.6]} 12... cxd4 {[%clk
0:02:32.7]} 13. cxd4 {[%clk 0:02:55.5]} 13... Nb6 {[%clk 0:02:26.4]} 14. Qxa5
{[%clk 0:02:50.3]} 14... Nxa5 {[%clk 0:02:25.7]} 15. Nf4 {[%clk 0:02:51.2]}
15... Be6 {[%clk 0:02:24]} 16. Kf2 {[%clk 0:02:37.2]} 16... Rfc8 {[%clk
0:02:19]} 17. Bd3 {[%clk 0:02:36.1]} 17... Nbc4 {[%clk 0:02:13.3]} 18. Rhb1
{[%clk 0:02:31.4]} 18... b6 {[%clk 0:02:12]} 19. Rb5 {[%clk 0:02:27.3]} 19...
Rd8 {[%clk 0:02:05.5]} 20. a4 {[%clk 0:02:21.4]} 20... Rac8 {[%clk 0:02:04.8]}
21. g4 {[%clk 0:02:11.9]} 21... Rd7 {[%clk 0:01:51.9]} 22. Bf5 {[%clk
0:02:01.2]} 22... Rc6 {[%clk 0:01:37.8]} 23. Rc1 {[%clk 0:01:55.9]} 23... Nxe3
{[%clk 0:01:34.3]} 24. Rxc6 {[%clk 0:01:54.4]} 24... Nxg4+ {[%clk 0:01:28.7]}
25. fxg4 {[%clk 0:01:49.1]} 25... Nxc6 {[%clk 0:01:28.4]} 26. Nxe6 {[%clk
0:01:41.4]} 26... g6 {[%clk 0:01:23]} 27. Nc5 {[%clk 0:01:26.5]} 27... Re7
{[%clk 0:01:13.1]} 28. Nb3 {[%clk 0:01:09.6]} 28... gxf5 {[%clk 0:01:10.7]} 29.
gxf5 {[%clk 0:01:10.3]} 29... Rd7 {[%clk 0:01:04.6]} 30. Ke3 {[%clk 0:01:10.1]}
30... Kf8 {[%clk 0:01:03.7]} 31. a5 {[%clk 0:01:10.1]} 31... bxa5 {[%clk
0:00:57.8]} 32. Nxa5 {[%clk 0:01:10.3]} 32... Nxa5 {[%clk 0:00:56.1]} 33. Rxa5
{[%clk 0:01:11.2]} 33... Ke7 {[%clk 0:00:55.8]} 34. f6+ {[%clk 0:01:07.6]} 34...
Ke6 {[%clk 0:00:47.3]} 35. Kf4 {[%clk 0:01:03.3]} 35... Rb7 {[%clk 0:00:45.3]}
36. Ra6+ {[%clk 0:01:03.3]} 36... Kd7 {[%clk 0:00:44.6]} 37. Rd6+ {[%clk
0:01:02]} 37... Ke8 {[%clk 0:00:42.7]} 38. Rxd5 {[%clk 0:01:01.5]} 38... Rb2
{[%clk 0:00:42.2]} 39. Ra5 {[%clk 0:00:55.3]} 39... Rxh2 {[%clk 0:00:40.6]} 40.
Rxa7 {[%clk 0:00:54.6]} 40... Rh4+ {[%clk 0:00:39.8]} 41. Ke3 {[%clk 0:00:54.2]}
41... h5 {[%clk 0:00:29.4]} 0-1

[Event "Early-Titled-Tuesday-Blitz-January-23-2024"]
[Site "Chess.com"]
[Date "2024.01.23"]
[Round "6"]
[White "Pastore1978"]
[Black "dmosesov"]
[Result "0-1"]
[WhiteElo "2279"]
[BlackElo "2612"]
[TimeControl "180+1"]
[EndTime "9:06:14 PST"]
[Termination "dmosesov won by checkmate"]

1. c4 {[%clk 0:03:00.9]} 1... b6 {[%clk 0:02:55]} 2. d4 {[%clk 0:02:58.9]} 2...
Nf6 {[%clk 0:02:54.9]} 3. g3 {[%clk 0:02:57.2]} 3... Bb7 {[%clk 0:02:54.9]} 4.
Nf3 {[%clk 0:02:57.7]} 4... g6 {[%clk 0:02:54]} 5. Bg2 {[%clk 0:02:58.2]} 5...
Bg7 {[%clk 0:02:53.8]} 6. O-O {[%clk 0:02:58.9]} 6... O-O {[%clk 0:02:54.4]} 7.
Nc3 {[%clk 0:02:59.3]} 7... Ne4 {[%clk 0:02:55]} 8. Nxe4 {[%clk 0:02:46.4]} 8...
Bxe4 {[%clk 0:02:53.6]} 9. d5 {[%clk 0:02:35]} 9... c6 {[%clk 0:02:35.2]} 10.
Qb3 {[%clk 0:02:25.8]} 10... Na6 {[%clk 0:02:25.2]} 11. Rd1 {[%clk 0:02:08.1]}
11... Nc5 {[%clk 0:02:24.1]} 12. Qe3 {[%clk 0:02:08.1]} 12... cxd5 {[%clk
0:02:22.1]} 13. cxd5 {[%clk 0:02:07.8]} 13... Rc8 {[%clk 0:02:09.6]} 14. Nd4
{[%clk 0:02:02.9]} 14... Bxg2 {[%clk 0:02:08]} 15. Kxg2 {[%clk 0:02:03.8]} 15...
Re8 {[%clk 0:01:27.8]} 16. Rb1 {[%clk 0:01:51.9]} 16... Qc7 {[%clk 0:01:25.2]}
17. Nb3 {[%clk 0:01:33.7]} 17... Qb7 {[%clk 0:01:17]} 18. Nxc5 {[%clk
0:01:15.1]} 18... Rxc5 {[%clk 0:01:17.9]} 19. Qd3 {[%clk 0:01:14.1]} 19... e6
{[%clk 0:01:05.9]} 20. e4 {[%clk 0:01:09.5]} 20... exd5 {[%clk 0:01:03.2]} 21.
exd5 {[%clk 0:01:10.4]} 21... Re5 {[%clk 0:00:56.6]} 22. Bf4 {[%clk 0:00:58.4]}
22... Rexd5 {[%clk 0:00:50.7]} 23. Qf3 {[%clk 0:00:58.5]} 23... Qc6 {[%clk
0:00:46.7]} 24. Re1 {[%clk 0:00:53.3]} 24... h5 {[%clk 0:00:28.7]} 25. Re8+
{[%clk 0:00:53.1]} 25... Kh7 {[%clk 0:00:11.5]} 26. Rbe1 {[%clk 0:00:50.9]}
26... Rc2 {[%clk 0:00:11.1]} 27. R1e7 {[%clk 0:00:27.7]} 27... Rf5 {[%clk
0:00:07.8]} 28. Qxc6 {[%clk 0:00:24.5]} 28... dxc6 {[%clk 0:00:06.4]} 29. Rxa7
{[%clk 0:00:23.7]} 29... Bd4 {[%clk 0:00:06.1]} 30. Ree7 {[%clk 0:00:15.7]}
30... Rxf2+ {[%clk 0:00:06.4]} 31. Kh3 {[%clk 0:00:16.2]} 31... g5 {[%clk
0:00:06.8]} 32. Bd6 {[%clk 0:00:07.6]} 32... g4+ {[%clk 0:00:06.8]} 33. Kh4
{[%clk 0:00:07.1]} 33... Rxh2# {[%clk 0:00:07.7]} 0-1